[Event "Early-Titled-Tuesday-Blitz-January-23-2024"]
[Site "Chess.com"]
[Date "2024.01.23"]
[Round "4"]
[White "SmirnovAlexandrA"]
[Black "InitiatingASC"]
[Result "0-1"]
[WhiteElo "2604"]
[BlackElo "2439"]
[TimeControl "180+1"]
[EndTime "8:37:44 PST"]
[Termination "InitiatingASC won by checkmate"]

1. e4 {[%clk 0:02:51]} 1... c5 {[%clk 0:02:59.6]} 2. Nf3 {[%clk 0:02:50.8]} 2...
Nc6 {[%clk 0:02:59.8]} 3. d4 {[%clk 0:02:50.1]} 3... cxd4 {[%clk 0:03:00.1]} 4.
Nxd4 {[%clk 0:02:51]} 4... Nf6 {[%clk 0:03:00.1]} 5. Nc3 {[%clk 0:02:51.3]} 5...
e5 {[%clk 0:03:00.8]} 6. Ndb5 {[%clk 0:02:51.4]} 6... h6 {[%clk 0:03:01]} 7. a4
{[%clk 0:02:51.2]} 7... d6 {[%clk 0:02:58.6]} 8. Bc4 {[%clk 0:02:47.7]} 8... Be6
{[%clk 0:02:52.8]} 9. Na3 {[%clk 0:02:46]} 9... Be7 {[%clk 0:02:43.5]} 10. O-O
{[%clk 0:02:44.5]} 10... O-O {[%clk 0:02:43.1]} 11. h3 {[%clk 0:02:39.3]} 11...
Bxc4 {[%clk 0:02:34.8]} 12. Nxc4 {[%clk 0:02:39]} 12... Nxe4 {[%clk 0:02:25.6]}
13. Nxe4 {[%clk 0:02:28.2]} 13... d5 {[%clk 0:02:25.9]} 14. Nxe5 {[%clk
0:02:24.7]} 14... Nxe5 {[%clk 0:02:18.5]} 15. Ng3 {[%clk 0:02:20.4]} 15... Bc5
{[%clk 0:02:12.3]} 16. b3 {[%clk 0:02:03.1]} 16... Qd6 {[%clk 0:01:52.7]} 17.
Bb2 {[%clk 0:01:56.2]} 17... Rad8 {[%clk 0:01:39.3]} 18. Qh5 {[%clk 0:01:55.2]}
18... Ng6 {[%clk 0:01:34.2]} 19. Rad1 {[%clk 0:01:52.7]} 19... Qxg3 {[%clk
0:01:33.6]} 20. Rd3 {[%clk 0:01:42.9]} 20... Qg5 {[%clk 0:01:27.6]} 21. Qf3
{[%clk 0:01:30.2]} 21... Rfe8 {[%clk 0:01:17.3]} 22. Bc1 {[%clk 0:01:30.1]}
22... Nh4 {[%clk 0:01:03.8]} 23. Qg4 {[%clk 0:01:21.9]} 23... Qxg4 {[%clk
0:01:01.7]} 24. hxg4 {[%clk 0:01:22.8]} 24... Re2 {[%clk 0:00:56.6]} 25. c3
{[%clk 0:01:17.5]} 25... Rde8 {[%clk 0:00:53.6]} 26. b4 {[%clk 0:01:16.9]} 26...
Be7 {[%clk 0:00:39.3]} 27. Rxd5 {[%clk 0:01:14.9]} 27... Bf6 {[%clk 0:00:39.1]}
28. g5 {[%clk 0:01:14.8]} 28... hxg5 {[%clk 0:00:37.5]} 29. Bxg5 {[%clk
0:01:07.1]} 29... Bxg5 {[%clk 0:00:36.2]} 30. Rxg5 {[%clk 0:01:08]} 30... Ng6
{[%clk 0:00:35.7]} 31. Ra5 {[%clk 0:01:04.8]} 31... a6 {[%clk 0:00:35.4]} 32. b5
{[%clk 0:01:04.8]} 32... axb5 {[%clk 0:00:35.5]} 33. Rxb5 {[%clk 0:01:00.9]}
33... R8e7 {[%clk 0:00:35.5]} 34. Rfb1 {[%clk 0:00:59.1]} 34... Rc2 {[%clk
0:00:34.4]} 35. Rxb7 {[%clk 0:00:57.9]} 35... Ree2 {[%clk 0:00:31.9]} 36. a5
{[%clk 0:00:50.7]} 36... Rxf2 {[%clk 0:00:30.8]} 37. a6 {[%clk 0:00:51.2]} 37...
Rxg2+ {[%clk 0:00:30.9]} 38. Kh1 {[%clk 0:00:51.6]} 38... Nh4 {[%clk 0:00:28.6]}
39. a7 {[%clk 0:00:44.8]} 39... Rh2+ {[%clk 0:00:28.7]} 40. Kg1 {[%clk
0:00:44.5]} 40... Rcg2+ {[%clk 0:00:29.6]} 41. Kf1 {[%clk 0:00:44.8]} 41... Rh1#
{[%clk 0:00:29.8]} 0-1

[Event "Early-Titled-Tuesday-Blitz-January-23-2024"]
[Site "Chess.com"]
[Date "2024.01.23"]
[Round "4"]
[White "Natalya_Buksa"]
[Black "vovachesss"]
[Result "1-0"]
[WhiteElo "2584"]
[BlackElo "2851"]
[TimeControl "180+1"]
[EndTime "8:37:46 PST"]
[Termination "Natalya_Buksa won on time"]

1. d4 {[%clk 0:03:00.1]} 1... d6 {[%clk 0:02:58.7]} 2. Nc3 {[%clk 0:02:59.8]}
2... Nf6 {[%clk 0:02:57]} 3. e4 {[%clk 0:03:00.2]} 3... Nbd7 {[%clk 0:02:57]} 4.
Nf3 {[%clk 0:03:00.7]} 4... e5 {[%clk 0:02:57.6]} 5. Bc4 {[%clk 0:03:00.7]} 5...
Be7 {[%clk 0:02:57.8]} 6. O-O {[%clk 0:02:58]} 6... O-O {[%clk 0:02:58]} 7. a4
{[%clk 0:02:58.7]} 7... a5 {[%clk 0:02:57]} 8. Re1 {[%clk 0:02:59.2]} 8... c6
{[%clk 0:02:57.5]} 9. h3 {[%clk 0:02:56.1]} 9... Qc7 {[%clk 0:02:57.6]} 10. d5
{[%clk 0:02:51.6]} 10... Nb6 {[%clk 0:02:47.7]} 11. Bb3 {[%clk 0:02:48.2]} 11...
cxd5 {[%clk 0:02:47.8]} 12. Bxd5 {[%clk 0:02:37]} 12... Nbxd5 {[%clk 0:02:33.6]}
13. exd5 {[%clk 0:02:35.4]} 13... Bf5 {[%clk 0:02:27]} 14. Bg5 {[%clk
0:02:33.8]} 14... h6 {[%clk 0:02:22]} 15. Bxf6 {[%clk 0:02:33.7]} 15... Bxf6
{[%clk 0:02:22.9]} 16. Re2 {[%clk 0:02:33.3]} 16... Rac8 {[%clk 0:02:02.7]} 17.
Nb5 {[%clk 0:02:28.3]} 17... Qb6 {[%clk 0:02:02.9]} 18. b3 {[%clk 0:02:23.3]}
18... Bxc2 {[%clk 0:01:25.8]} 19. Rxc2 {[%clk 0:02:22.9]} 19... Rxc2 {[%clk
0:01:26.7]} 20. Qxc2 {[%clk 0:02:22.9]} 20... e4 {[%clk 0:01:27.4]} 21. Re1
{[%clk 0:01:53.4]} 21... exf3 {[%clk 0:01:27.2]} 22. gxf3 {[%clk 0:01:54.3]}
22... Qc5 {[%clk 0:00:50.5]} 23. Qxc5 {[%clk 0:01:42.2]} 23... dxc5 {[%clk
0:00:51.4]} 24. Re4 {[%clk 0:01:41.6]} 24... Rd8 {[%clk 0:00:50.3]} 25. d6
{[%clk 0:01:41.4]} 25... Kf8 {[%clk 0:00:47.9]} 26. Kf1 {[%clk 0:01:41.8]} 26...
g6 {[%clk 0:00:33.1]} 27. Ke2 {[%clk 0:01:41.4]} 27... Kg7 {[%clk 0:00:19]} 28.
Kd3 {[%clk 0:01:41]} 28... b6 {[%clk 0:00:15.7]} 29. Kc4 {[%clk 0:01:33.8]}
29... Kf8 {[%clk 0:00:16.1]} 30. Kd5 {[%clk 0:01:33.6]} 30... Rc8 {[%clk
0:00:08.3]} 31. d7 {[%clk 0:01:19]} 31... Rd8 {[%clk 0:00:05.6]} 32. Kd6 {[%clk
0:01:19.4]} 32... h5 {[%clk 0:00:04.8]} 33. Nc7 {[%clk 0:01:18.7]} 33... c4
{[%clk 0:00:01.9]} 34. bxc4 {[%clk 0:01:13.8]} 34... Kg7 {[%clk 0:00:01.1]} 35.
Nd5 {[%clk 0:01:04.4]} 1-0

[Event "Early-Titled-Tuesday-Blitz-January-23-2024"]
[Site "Chess.com"]
[Date "2024.01.23"]
[Round "4"]
[White "eightbyeightchess"]
[Black "wadsy27"]
[Result "0-1"]
[WhiteElo "2372"]
[BlackElo "2642"]
[TimeControl "180+1"]
[EndTime "8:37:47 PST"]
[Termination "wadsy27 won by resignation"]

1. e4 {[%clk 0:02:54.9]} 1... e6 {[%clk 0:02:59.2]} 2. d4 {[%clk 0:02:48.6]}
2... d5 {[%clk 0:02:55]} 3. e5 {[%clk 0:02:43.6]} 3... c5 {[%clk 0:02:52.9]} 4.
c3 {[%clk 0:02:40.4]} 4... Nc6 {[%clk 0:02:52.6]} 5. Nf3 {[%clk 0:02:40.8]} 5...
Qb6 {[%clk 0:02:51.1]} 6. Bd3 {[%clk 0:02:38.5]} 6... cxd4 {[%clk 0:02:49.4]} 7.
O-O {[%clk 0:02:37.6]} 7... Bd7 {[%clk 0:02:49.9]} 8. Re1 {[%clk 0:02:34.1]}
8... Nge7 {[%clk 0:02:43.9]} 9. h4 {[%clk 0:02:28.4]} 9... h6 {[%clk 0:02:40.5]}
10. a3 {[%clk 0:02:02.2]} 10... a5 {[%clk 0:02:30.1]} 11. Nbd2 {[%clk
0:01:55.4]} 11... Nf5 {[%clk 0:02:28.6]} 12. Bxf5 {[%clk 0:01:54.4]} 12... exf5
{[%clk 0:02:28]} 13. Nb3 {[%clk 0:01:47.2]} 13... dxc3 {[%clk 0:02:10.8]} 14.
bxc3 {[%clk 0:01:48.1]} 14... Be6 {[%clk 0:02:11.1]} 15. Be3 {[%clk 0:01:43.9]}
15... Qd8 {[%clk 0:02:10.8]} 16. Rb1 {[%clk 0:01:40.2]} 16... Be7 {[%clk
0:01:59.3]} 17. Nc5 {[%clk 0:01:34.8]} 17... O-O {[%clk 0:01:53.6]} 18. Rxb7
{[%clk 0:01:21.8]} 18... Rb8 {[%clk 0:01:35.5]} 19. Rxb8 {[%clk 0:00:59.2]}
19... Qxb8 {[%clk 0:01:33.9]} 20. Qa4 {[%clk 0:00:59.5]} 20... Rc8 {[%clk
0:01:30.9]} 21. c4 {[%clk 0:00:37]} 21... Bxc5 {[%clk 0:01:24.5]} 22. Bxc5
{[%clk 0:00:37.2]} 22... dxc4 {[%clk 0:01:22.7]} 23. Bd6 {[%clk 0:00:36.8]}
23... Qb3 {[%clk 0:01:21.5]} 24. Qxb3 {[%clk 0:00:34]} 24... cxb3 {[%clk
0:01:21]} 25. Rc1 {[%clk 0:00:34.6]} 25... a4 {[%clk 0:01:12.9]} 26. Nd2 {[%clk
0:00:34.8]} 26... Nd4 {[%clk 0:01:07.3]} 27. Rxc8+ {[%clk 0:00:34.2]} 27... Bxc8
{[%clk 0:01:06.4]} 28. Kf1 {[%clk 0:00:35.1]} 28... Ba6+ {[%clk 0:00:50.9]} 29.
Ke1 {[%clk 0:00:34.7]} 29... Bd3 {[%clk 0:00:49.6]} 30. Bc5 {[%clk 0:00:13.5]}
30... Ne6 {[%clk 0:00:47.6]} 31. Bb4 {[%clk 0:00:13.1]} 31... b2 {[%clk
0:00:47.1]} 0-1

[Event "Early-Titled-Tuesday-Blitz-January-23-2024"]
[Site "Chess.com"]
[Date "2024.01.23"]
[Round "4"]
[White "bangchess21"]
[Black "betta2004"]
[Result "1-0"]
[WhiteElo "2776"]
[BlackElo "2546"]
[TimeControl "180+1"]
[EndTime "8:37:48 PST"]
[Termination "bangchess21 won by resignation"]

1. e4 {[%clk 0:03:00.9]} 1... e5 {[%clk 0:02:56.3]} 2. Nf3 {[%clk 0:03:00.6]}
2... Nf6 {[%clk 0:02:56.9]} 3. Nxe5 {[%clk 0:02:59.8]} 3... Nc6 {[%clk
0:02:57.5]} 4. Nxc6 {[%clk 0:02:59.1]} 4... dxc6 {[%clk 0:02:58.4]} 5. Nc3
{[%clk 0:02:50.5]} 5... Bc5 {[%clk 0:02:57.2]} 6. h3 {[%clk 0:02:47.8]} 6... h5
{[%clk 0:02:49.3]} 7. d3 {[%clk 0:02:45.4]} 7... Be6 {[%clk 0:02:43.6]} 8. Be3
{[%clk 0:02:31.1]} 8... Bxe3 {[%clk 0:02:34.5]} 9. fxe3 {[%clk 0:02:31.3]} 9...
Qd6 {[%clk 0:02:35.4]} 10. Qf3 {[%clk 0:02:29.5]} 10... Qb4 {[%clk 0:02:07.4]}
11. O-O-O {[%clk 0:02:28.3]} 11... O-O-O {[%clk 0:02:07.4]} 12. d4 {[%clk
0:02:20.8]} 12... Qa5 {[%clk 0:01:12.7]} 13. Kb1 {[%clk 0:02:01.1]} 13... Bg4
{[%clk 0:01:08.3]} 14. hxg4 {[%clk 0:01:18.9]} 14... hxg4 {[%clk 0:01:09.2]} 15.
Qf4 {[%clk 0:01:19.6]} 15... Rxh1 {[%clk 0:01:08]} 16. e5 {[%clk 0:01:20.2]}
16... Nd5 {[%clk 0:01:03.6]} 17. Qxg4+ {[%clk 0:01:18.9]} 17... Kb8 {[%clk
0:01:02.8]} 18. Nxd5 {[%clk 0:01:13.2]} 18... Qxd5 {[%clk 0:01:03.7]} 19. b3
{[%clk 0:01:13.8]} 19... a5 {[%clk 0:01:01.3]} 20. Kb2 {[%clk 0:01:13.9]} 20...
a4 {[%clk 0:01:01.4]} 21. Bc4 {[%clk 0:00:59.3]} 21... a3+ {[%clk 0:01:01.8]}
22. Kc3 {[%clk 0:00:54.8]} 22... Qa5+ {[%clk 0:00:12.6]} 23. b4 {[%clk
0:00:53.9]} 23... Qa8 {[%clk 0:00:08]} 24. Rxh1 {[%clk 0:00:53.1]} 24... b5
{[%clk 0:00:08.2]} 25. Bxf7 {[%clk 0:00:44.2]} 25... c5 {[%clk 0:00:08.7]} 26.
dxc5 {[%clk 0:00:44.7]} 26... Qc6 {[%clk 0:00:06.3]} 27. Rd1 {[%clk 0:00:42.8]}
27... Rf8 {[%clk 0:00:03.7]} 28. e6 {[%clk 0:00:41.7]} 1-0

[Event "Early-Titled-Tuesday-Blitz-January-23-2024"]
[Site "Chess.com"]
[Date "2024.01.23"]
[Round "4"]
[White "biostatistician"]
[Black "Nemegejas"]
[Result "1-0"]
[WhiteElo "2596"]
[BlackElo "2882"]
[TimeControl "180+1"]
[EndTime "8:37:50 PST"]
[Termination "biostatistician won by resignation"]

1. d4 {[%clk 0:02:59.4]} 1... c6 {[%clk 0:01:48.7]} 2. c4 {[%clk 0:02:57.4]}
2... d5 {[%clk 0:01:39.6]} 3. cxd5 {[%clk 0:02:58.3]} 3... cxd5 {[%clk
0:01:39.7]} 4. Nc3 {[%clk 0:02:58.8]} 4... Nf6 {[%clk 0:01:39.7]} 5. Bf4 {[%clk
0:02:59]} 5... Nc6 {[%clk 0:01:38.7]} 6. e3 {[%clk 0:02:59.4]} 6... Bg4 {[%clk
0:01:38.5]} 7. Qb3 {[%clk 0:02:54.7]} 7... Qd7 {[%clk 0:01:33.8]} 8. Bb5 {[%clk
0:02:52.4]} 8... e6 {[%clk 0:01:28.7]} 9. h3 {[%clk 0:02:47.8]} 9... Bh5 {[%clk
0:01:27.5]} 10. Rc1 {[%clk 0:02:22.2]} 10... Bd6 {[%clk 0:01:16.6]} 11. Nge2
{[%clk 0:02:22.1]} 11... Bxe2 {[%clk 0:01:02.4]} 12. Nxe2 {[%clk 0:02:21.9]}
12... Bxf4 {[%clk 0:01:02.5]} 13. Nxf4 {[%clk 0:02:21.8]} 13... Rc8 {[%clk
0:00:59.7]} 14. Nd3 {[%clk 0:02:16.1]} 14... O-O {[%clk 0:00:56.5]} 15. O-O
{[%clk 0:02:15.2]} 15... Qd6 {[%clk 0:00:42.1]} 16. Bxc6 {[%clk 0:02:01.6]}
16... bxc6 {[%clk 0:00:43]} 17. Rc2 {[%clk 0:01:25.3]} 17... Rc7 {[%clk
0:00:37.8]} 18. Rfc1 {[%clk 0:01:25.4]} 18... Rfc8 {[%clk 0:00:38.4]} 19. Qb4
{[%clk 0:00:53.2]} 19... Qd8 {[%clk 0:00:28.2]} 20. Ne5 {[%clk 0:00:51.2]} 20...
Qe8 {[%clk 0:00:28.6]} 21. Qa4 {[%clk 0:00:47.8]} 21... g6 {[%clk 0:00:03.9]}
22. Rxc6 {[%clk 0:00:39.9]} 22... Kg7 {[%clk 0:00:03.9]} 23. b3 {[%clk
0:00:28.5]} 23... h5 {[%clk 0:00:03]} 24. Rxc7 {[%clk 0:00:27.6]} 24... Rxc7
{[%clk 0:00:03.2]} 1-0

[Event "Early-Titled-Tuesday-Blitz-January-23-2024"]
[Site "Chess.com"]
[Date "2024.01.23"]
[Round "4"]
[White "UK_23"]
[Black "xakevicius91"]
[Result "0-1"]
[WhiteElo "2384"]
[BlackElo "2579"]
[TimeControl "180+1"]
[EndTime "8:37:51 PST"]
[Termination "xakevicius91 won by resignation"]

1. e4 {[%clk 0:03:00.9]} 1... c5 {[%clk 0:02:59.9]} 2. Nf3 {[%clk 0:03:00.9]}
2... a6 {[%clk 0:03:00]} 3. g3 {[%clk 0:02:59.4]} 3... d6 {[%clk 0:02:59.1]} 4.
Bg2 {[%clk 0:02:59.5]} 4... Nc6 {[%clk 0:02:59.6]} 5. O-O {[%clk 0:02:59.5]}
5... Bg4 {[%clk 0:02:59.8]} 6. h3 {[%clk 0:02:59.2]} 6... Bh5 {[%clk 0:02:59.7]}
7. c3 {[%clk 0:02:58.3]} 7... Qd7 {[%clk 0:02:59.7]} 8. Kh2 {[%clk 0:02:55.6]}
8... Nf6 {[%clk 0:02:58.9]} 9. Re1 {[%clk 0:02:54.8]} 9... e5 {[%clk 0:02:57.9]}
10. Na3 {[%clk 0:02:54]} 10... Be7 {[%clk 0:02:57.7]} 11. Nc2 {[%clk 0:02:51.8]}
11... O-O {[%clk 0:02:57.9]} 12. d4 {[%clk 0:02:47]} 12... cxd4 {[%clk
0:02:55.3]} 13. cxd4 {[%clk 0:02:46.8]} 13... Rad8 {[%clk 0:02:52.6]} 14. b3
{[%clk 0:02:41.7]} 14... Bg6 {[%clk 0:02:50.6]} 15. Nh4 {[%clk 0:02:36]} 15...
Rfe8 {[%clk 0:02:35.9]} 16. Bb2 {[%clk 0:02:32.8]} 16... Bf8 {[%clk 0:02:35.6]}
17. Nxg6 {[%clk 0:02:30.1]} 17... hxg6 {[%clk 0:02:35.6]} 18. Qd3 {[%clk
0:02:08.7]} 18... b5 {[%clk 0:02:18.9]} 19. Rad1 {[%clk 0:02:07.2]} 19... Qb7
{[%clk 0:02:18.7]} 20. d5 {[%clk 0:01:58.7]} 20... Nb8 {[%clk 0:02:17.6]} 21.
Ne3 {[%clk 0:01:58]} 21... Nbd7 {[%clk 0:02:11.6]} 22. b4 {[%clk 0:01:57.3]}
22... Nb6 {[%clk 0:02:11.1]} 23. Rc1 {[%clk 0:01:56]} 23... Rc8 {[%clk 0:02:11]}
24. a3 {[%clk 0:01:54.4]} 24... Be7 {[%clk 0:02:04]} 25. h4 {[%clk 0:01:54.5]}
25... Rxc1 {[%clk 0:02:01.2]} 26. Rxc1 {[%clk 0:01:54.3]} 26... Rc8 {[%clk
0:02:02.1]} 27. Bh3 {[%clk 0:01:51.8]} 27... Rc7 {[%clk 0:02:01.4]} 28. f3
{[%clk 0:01:45]} 28... Qb8 {[%clk 0:01:43.4]} 29. Rc6 {[%clk 0:01:32.9]} 29...
Rxc6 {[%clk 0:01:42.2]} 30. dxc6 {[%clk 0:01:33.8]} 30... Qc7 {[%clk 0:01:41.8]}
31. Nd5 {[%clk 0:01:30.1]} 31... Nfxd5 {[%clk 0:01:37.7]} 32. exd5 {[%clk
0:01:31]} 32... f5 {[%clk 0:01:37.1]} 33. Bc1 {[%clk 0:01:25.6]} 33... Bd8
{[%clk 0:01:34.6]} 34. Be3 {[%clk 0:01:25.1]} 34... Nc4 {[%clk 0:01:31.1]} 35.
Bf2 {[%clk 0:01:21.8]} 35... Qf7 {[%clk 0:01:30.3]} 36. a4 {[%clk 0:01:18]}
36... Bc7 {[%clk 0:01:27.2]} 37. axb5 {[%clk 0:01:15.3]} 37... axb5 {[%clk
0:01:28.1]} 38. Bg2 {[%clk 0:01:13.4]} 38... Kf8 {[%clk 0:01:26.8]} 39. f4
{[%clk 0:01:07.1]} 39... e4 {[%clk 0:01:25.6]} 40. Qd4 {[%clk 0:01:05.8]} 40...
Bb6 {[%clk 0:01:25]} 41. Qxb6 {[%clk 0:00:59.4]} 41... Nxb6 {[%clk 0:01:24.9]}
42. Bxb6 {[%clk 0:01:00.3]} 42... Qxd5 {[%clk 0:01:23.7]} 43. c7 {[%clk
0:00:57.6]} 43... Qc6 {[%clk 0:01:17.8]} 44. Bf1 {[%clk 0:00:56.3]} 44... Ke7
{[%clk 0:00:51.7]} 45. Bxb5 {[%clk 0:00:55.9]} 45... Qb7 {[%clk 0:00:48.9]} 46.
Kg2 {[%clk 0:00:32.4]} 46... e3+ {[%clk 0:00:47.6]} 47. Kf1 {[%clk 0:00:32.6]}
47... Qf3+ {[%clk 0:00:45]} 0-1

[Event "Early-Titled-Tuesday-Blitz-January-23-2024"]
[Site "Chess.com"]
[Date "2024.01.23"]
[Round "4"]
[White "samirliberec"]
[Black "Mistango"]
[Result "1-0"]
[WhiteElo "2354"]
[BlackElo "2513"]
[TimeControl "180+1"]
[EndTime "8:37:51 PST"]
[Termination "samirliberec won by checkmate"]

1. e4 {[%clk 0:03:00.9]} 1... c5 {[%clk 0:02:59.9]} 2. Nf3 {[%clk 0:03:00.3]}
2... d6 {[%clk 0:03:00.2]} 3. Bb5+ {[%clk 0:02:59.1]} 3... Nd7 {[%clk
0:02:59.3]} 4. O-O {[%clk 0:02:56.1]} 4... a6 {[%clk 0:02:59.7]} 5. Bxd7+ {[%clk
0:02:55.7]} 5... Bxd7 {[%clk 0:03:00.6]} 6. h3 {[%clk 0:02:55.7]} 6... Nf6
{[%clk 0:02:59.5]} 7. Re1 {[%clk 0:02:55.2]} 7... e5 {[%clk 0:02:59.6]} 8. c3
{[%clk 0:02:55.3]} 8... Bc6 {[%clk 0:02:57.2]} 9. d3 {[%clk 0:02:53.7]} 9... Be7
{[%clk 0:02:57.2]} 10. Bg5 {[%clk 0:02:53.1]} 10... O-O {[%clk 0:02:57.4]} 11.
Nbd2 {[%clk 0:02:52]} 11... b5 {[%clk 0:02:58]} 12. a4 {[%clk 0:02:47.1]} 12...
Nd7 {[%clk 0:02:53.7]} 13. Bxe7 {[%clk 0:02:42.4]} 13... Qxe7 {[%clk 0:02:54.6]}
14. axb5 {[%clk 0:02:42.4]} 14... axb5 {[%clk 0:02:55.2]} 15. Rxa8 {[%clk
0:02:42.1]} 15... Rxa8 {[%clk 0:02:56.1]} 16. d4 {[%clk 0:02:39.1]} 16... c4
{[%clk 0:02:53.4]} 17. d5 {[%clk 0:02:24.4]} 17... Bb7 {[%clk 0:02:53.3]} 18. b4
{[%clk 0:02:19.3]} 18... Nb6 {[%clk 0:02:45.7]} 19. Nh2 {[%clk 0:02:06.6]} 19...
Ra2 {[%clk 0:02:42.1]} 20. Nb1 {[%clk 0:01:59.7]} 20... Qd8 {[%clk 0:02:37.4]}
21. Qg4 {[%clk 0:01:54.5]} 21... g6 {[%clk 0:02:31.1]} 22. f4 {[%clk 0:01:48.7]}
22... Nd7 {[%clk 0:02:22.3]} 23. Nf3 {[%clk 0:01:44.3]} 23... exf4 {[%clk
0:02:09]} 24. Qxf4 {[%clk 0:01:40.9]} 24... Qb6+ {[%clk 0:02:05.8]} 25. Qe3
{[%clk 0:01:28.3]} 25... Qxe3+ {[%clk 0:02:05.9]} 26. Rxe3 {[%clk 0:01:28.1]}
26... f6 {[%clk 0:01:53.7]} 27. g4 {[%clk 0:01:25]} 27... Nb6 {[%clk 0:01:44.5]}
28. g5 {[%clk 0:01:21.7]} 28... fxg5 {[%clk 0:01:36.1]} 29. Nxg5 {[%clk
0:01:20.9]} 29... Na4 {[%clk 0:01:30.8]} 30. Ne6 {[%clk 0:01:03.3]} 30... Ra1
{[%clk 0:01:26.7]} 31. Rf3 {[%clk 0:00:50.2]} 31... Rxb1+ {[%clk 0:01:26.3]} 32.
Kh2 {[%clk 0:00:49.4]} 32... h5 {[%clk 0:01:17]} 33. Rf8+ {[%clk 0:00:46.6]}
33... Kh7 {[%clk 0:01:17.2]} 34. Rf7+ {[%clk 0:00:45.3]} 34... Kg8 {[%clk
0:00:59]} 35. Rf8+ {[%clk 0:00:44.5]} 35... Kh7 {[%clk 0:00:59.4]} 36. Rf7+
{[%clk 0:00:44.8]} 36... Kh6 {[%clk 0:00:58.8]} 37. h4 {[%clk 0:00:36.2]} 37...
g5 {[%clk 0:00:37.4]} 38. hxg5+ {[%clk 0:00:30.3]} 38... Kg6 {[%clk 0:00:37.9]}
39. Rg7# {[%clk 0:00:24.8]} 1-0

[Event "Early-Titled-Tuesday-Blitz-January-23-2024"]
[Site "Chess.com"]
[Date "2024.01.23"]
[Round "4"]
[White "noblerone"]
[Black "simonachess"]
[Result "1-0"]
[WhiteElo "2528"]
[BlackElo "2332"]
[TimeControl "180+1"]
[EndTime "8:37:52 PST"]
[Termination "noblerone won by resignation"]

1. d4 {[%clk 0:02:58.3]} 1... Nf6 {[%clk 0:02:59.7]} 2. c4 {[%clk 0:02:57.2]}
2... e6 {[%clk 0:02:59.8]} 3. Nc3 {[%clk 0:02:57.6]} 3... Bb4 {[%clk 0:02:57.3]}
4. Qb3 {[%clk 0:02:57.9]} 4... Qe7 {[%clk 0:02:52.6]} 5. Bd2 {[%clk 0:02:50.3]}
5... a5 {[%clk 0:02:50.1]} 6. a3 {[%clk 0:02:49.9]} 6... Bxc3 {[%clk 0:02:47.8]}
7. Qxc3 {[%clk 0:02:46.9]} 7... Ne4 {[%clk 0:02:41.3]} 8. Qc2 {[%clk 0:02:47.1]}
8... Nxd2 {[%clk 0:02:40.9]} 9. Qxd2 {[%clk 0:02:46.5]} 9... a4 {[%clk
0:02:41.4]} 10. g3 {[%clk 0:02:45]} 10... O-O {[%clk 0:02:39.5]} 11. Bg2 {[%clk
0:02:42.9]} 11... c6 {[%clk 0:02:39.9]} 12. e4 {[%clk 0:02:40.4]} 12... d5
{[%clk 0:02:37.6]} 13. Ne2 {[%clk 0:02:39.9]} 13... dxe4 {[%clk 0:02:31.8]} 14.
Bxe4 {[%clk 0:02:39.4]} 14... e5 {[%clk 0:02:31.6]} 15. d5 {[%clk 0:02:33.4]}
15... cxd5 {[%clk 0:02:30]} 16. Bxd5 {[%clk 0:02:32.2]} 16... Be6 {[%clk
0:02:26]} 17. Nc3 {[%clk 0:02:32.1]} 17... Bh3 {[%clk 0:02:17.3]} 18. O-O-O
{[%clk 0:02:26.4]} 18... Nc6 {[%clk 0:02:17]} 19. Rhe1 {[%clk 0:02:25.8]} 19...
Rfe8 {[%clk 0:01:48.3]} 20. f4 {[%clk 0:02:25.5]} 20... Qc5 {[%clk 0:01:35.4]}
21. Qe3 {[%clk 0:02:07.3]} 21... Qxe3+ {[%clk 0:01:23]} 22. Rxe3 {[%clk
0:02:08.2]} 22... exf4 {[%clk 0:01:23.4]} 23. Rxe8+ {[%clk 0:02:04.2]} 23...
Rxe8 {[%clk 0:01:24.3]} 24. gxf4 {[%clk 0:02:04.3]} 24... Bg4 {[%clk 0:00:57.6]}
25. Bxc6 {[%clk 0:02:00.2]} 25... bxc6 {[%clk 0:00:56.5]} 26. Rd6 {[%clk
0:02:00.6]} 26... h6 {[%clk 0:00:20.1]} 27. Nxa4 {[%clk 0:01:50.6]} 27... Re1+
{[%clk 0:00:19.1]} 28. Kc2 {[%clk 0:01:47.9]} 28... Rh1 {[%clk 0:00:17.8]} 29.
Rd2 {[%clk 0:01:42]} 29... Rf1 {[%clk 0:00:14.6]} 30. Kc3 {[%clk 0:01:29.5]}
30... Rxf4 {[%clk 0:00:14.4]} 31. Nc5 {[%clk 0:01:27.7]} 31... Rf3+ {[%clk
0:00:13.2]} 32. Kb4 {[%clk 0:01:27.4]} 32... Re3 {[%clk 0:00:09.5]} 33. a4
{[%clk 0:01:26.4]} 33... Re8 {[%clk 0:00:08.5]} 34. a5 {[%clk 0:01:25.5]} 34...
Ra8 {[%clk 0:00:05.8]} 35. a6 {[%clk 0:01:24.8]} 35... Kf8 {[%clk 0:00:05.6]}
36. Ka5 {[%clk 0:01:24.3]} 36... Ke7 {[%clk 0:00:06]} 37. Kb6 {[%clk 0:01:24.5]}
37... Bc8 {[%clk 0:00:06.6]} 38. b4 {[%clk 0:01:21.2]} 38... Bxa6 {[%clk
0:00:06.5]} 39. Nxa6 {[%clk 0:01:20.7]} 39... f5 {[%clk 0:00:04.4]} 40. b5
{[%clk 0:01:19.5]} 40... f4 {[%clk 0:00:04.9]} 41. Kxc6 {[%clk 0:01:17.5]} 41...
g5 {[%clk 0:00:05.3]} 42. Nc7 {[%clk 0:01:16.7]} 42... Rc8 {[%clk 0:00:05.6]}
43. b6 {[%clk 0:01:16.9]} 43... f3 {[%clk 0:00:05.3]} 44. b7 {[%clk 0:01:15.5]}
44... Rb8 {[%clk 0:00:05.8]} 45. Na6 {[%clk 0:01:14.9]} 45... Rxb7 {[%clk
0:00:06.4]} 46. Kxb7 {[%clk 0:01:15.8]} 46... g4 {[%clk 0:00:06.8]} 47. c5
{[%clk 0:01:16.1]} 47... h5 {[%clk 0:00:07.3]} 48. c6 {[%clk 0:01:16.4]} 48...
h4 {[%clk 0:00:08]} 49. c7 {[%clk 0:01:16.5]} 49... g3 {[%clk 0:00:08.9]} 50.
c8=Q {[%clk 0:01:16.3]} 1-0